Cogmind - Beta 13 @@@ ROGUE MODE // 2024.04.04 @ 02:34:09 Player: Over-in Result: Destroyed by G-67 Veteran with Field Laser Performance ------------- Evolutions (6) 3000 Regions Visited (10) 2000 Robots Destroyed (113) 565 Value Destroyed (3856) 3856 Prototype IDs (8) 160 Alien Tech Used (0) 0 Bonus (6) 6 TOTAL SCORE: 9587 Bonus ------- Follower Combat Kills 52 Friendly Fire -46 Cogmind --------- Core Integrity 0/1150 Matter 45/300 Energy 340/340 System Corruption 8% Temperature Cool (21) Movement Treading (330) Ox2 Location -4/Factory Parts ------- > --- POWER (2) -------- Heavy Antimatter Reactor > --- PROPULSION (3) --- Armored Treads > --- UTILITY (7) ------ Small Storage Unit Signal Interpreter > --- WEAPON (7) ------- Heavy Mass Driver Heavy Gauss Cannon > --- INVENTORY (8) ---- Flexi-carbon Leg Signal Interpreter Peak State ------------ > --- POWER ------------ Nuclear Core > --- PROPULSION ------- Armored Treads Advanced Treads Improved Medium Treads > --- UTILITY ---------- Improved Heat Sink Huge Storage Unit Improved Signal Interpreter Improved Medium Armor Plating Improved Hardlight Generator Thief Drone Bay > --- WEAPON ----------- Shock Rifle High-powered Shock Rifle Particle Gun Plasma Cannon Plasma Cannon Advanced Plasma Cannon Improved Grenade Launcher > --- INVENTORY -------- Nuclear Core Nuclear Core Neutrino Core Improved Treads Improved Treads Wheel Wheel Wheel Wheel Wheel Wheel Wheel Antigrav System Antigrav System Signal Interpreter Signal Interpreter High-powered Shock Rifle Pulse Rifle Pulse Rifle Ion Cannon Heavy Ion Cannon High-powered Shotgun High-powered Shotgun KE Penetrator Precision Grenade Launcher [Rating: 71] Favorites ----------- Power Light Nuclear Core Engine Ion Engine Power Core Light Nuclear Core Reactor Heavy Antimatter Reactor Propulsion Light Treads Treads Light Treads Leg Aluminum Leg Wheel Wheel Hover Unit Gravmag System Flight Unit Nuclear Pulse Thruster Utility Huge Storage Unit Device Experimental Sensor Array Storage Huge Storage Unit Processor Signal Interpreter Protection Improved Medium Armor Plating Weapon Pulse Rifle Energy Gun Pulse Rifle Energy Cannon Plasma Cannon Ballistic Gun High-powered Shotgun Ballistic Cannon Gauss Cannon Launcher Precision Grenade Launcher Special Melee Weapon Datajack Build | -11 -10 -9 -9 -9 -8 -8 -7 -6 -5 -4 ------- Run | Yrd Mat Mat Min Exi Min Mat Fac Fac Fac Fac Slots Evolved 12 | . . 2 . . . 2 2 2 2 2 Power 1 | . . . . . . . . . . 1 Propulsion 1 | . . 1 . . . . . . . . Utility 5 | . . 1 . . . 1 1 1 . 1 Weapon 5 | . . . . . . 1 1 1 2 . Parts Attached 171 | 13 8 26 3 . 2 35 29 4 33 18 Power 15 | 1 . 3 1 . . 4 2 . 1 3 Engine 6 | 1 . 2 . . . 2 1 . . . Core 8 | . . 1 1 . . 2 1 . 1 2 Reactor 1 | . . . . . . . . . . 1 Propulsion 62 | 9 2 11 . . 1 12 8 2 13 4 Treads 33 | 4 2 3 . . 1 12 5 . 4 2 Leg 14 | 5 . 8 . . . . . . . 1 Wheel 13 | . . . . . . . 2 1 9 1 Hover 1 | . . . . . . . 1 . . . Flight 1 | . . . . . . . . 1 . . Utility 31 | 1 3 4 2 . . 4 9 1 6 1 Device 9 | . . 1 2 . . . 3 1 2 . Storage 4 | 1 1 1 . . . . . . . 1 Processor 3 | . 1 . . . . . 1 . 1 . Hackware . | . . . . . . . . . . . Protection 15 | . 1 2 . . . 4 5 . 3 . Artifact . | . . . . . . . . . . . Weapon 63 | 2 3 8 . . 1 15 10 1 13 10 Energy Gun 28 | 2 2 1 . . . 6 6 1 5 5 Energy Cannon 13 | . . . . . 1 6 . . 5 1 Ballistic Gun 13 | . . 7 . . . 3 . . 2 1 Ballistic Cannon 4 | . . . . . . . 1 . . 3 Launcher 4 | . . . . . . . 3 . 1 . Special Weapon . | . . . . . . . . . . . Impact Weapon . | . . . . . . . . . . . Slashing Weapon . | . . . . . . . . . . . Piercing Weapon . | . . . . . . . . . . . Special Melee Weapon 1 | . 1 . . . . . . . . . Unidentified Prototypes 8 | . . . 2 . . 4 1 . . 1 Parts Lost 84 | . . 13 . . 2 10 19 . 19 21 Power 8 | . . 2 . . . 1 2 . . 3 Propulsion 20 | . . 5 . . 1 3 4 . 3 4 Utility 22 | . . 2 . . . 3 7 . 7 3 Weapon 34 | . . 4 . . 1 3 6 . 9 11 Highest Loss Streak 18 | . . 4 . . 2 5 9 . 8 18 To Critical Strikes . | . . . . . . . . . . . Average Slot Usage (%) 94 | . 94 96 100 100 99 98 86 100 97 44 Engine 2 | . 14 6 . . . . 4 . . . Core 6 | . . 4 11 11 11 8 1 6 5 4 Treads 17 | . 16 4 33 33 32 26 11 13 1 2 Leg 3 | . 11 25 . . . . . . . . Wheel 2 | . . . . . . . . 6 15 4 Device 8 | . . . 9 11 11 5 6 26 19 4 Storage 9 | . 14 15 11 11 11 9 7 6 5 2 Processor 8 | . . 11 11 11 11 9 7 6 3 5 Protection 7 | . 8 6 1 . . 12 15 . 4 . Energy Gun 15 | . 27 7 11 11 6 15 16 26 24 7 Energy Cannon 3 | . . . . . 4 5 2 . 8 5 Ballistic Gun 6 | . . 14 11 11 11 5 2 . . 1 Launcher 1 | . . . . . . . 5 6 4 . Naked Turns . | . . . . . . . . . . . Heaviest Build 159 | 12 92 98 95 92 93 104 124 112 159 150 Greatest Support 63 | 40 40 60 60 60 60 63 62 10 30 43 Greatest Overweight (x) 43 | 1 4 9 1 1 1 2 39 11 13 43 Average Overweight (x) 2 | . 1 2 1 1 1 1 5 11 5 2 Largest Inventory Capacity 25 | 8 25 25 25 25 25 25 25 25 25 25 Average Capacity 24 | 7 18 25 25 25 25 25 25 25 25 15 Most Carried 25 | 4 11 25 25 25 25 25 23 13 25 21 Average Carried 19 | 3 9 18 24 25 24 23 16 12 19 9 Final Capacity 25 | 8 25 25 25 25 25 25 25 25 25 8 Final Carried 25 | 4 11 25 25 25 25 17 14 12 22 2 Class Distribution -------------------- 36% | Mutant 11% | Tank 11% | Scavenger-Mutant 10% | Scavenger-Skirmisher 9% | Scavenger-Tank 7% | Executioner 6% | Skirmisher 5% | Scavenger-Executioner Dominant Class ---------------- Mutant | -10/Materials Scavenger-Mutant | -9/Materials Mutant | -9/Mines Mutant | -9/Exiles Mutant | -8/Mines Scavenger-Skirmisher | -8/Materials Tank | -7/Factory Skirmisher | -6/Factory Executioner | -5/Factory Mutant | -4/Factory Resources | -11 -10 -9 -9 -9 -8 -8 -7 -6 -5 -4 ----------- Run | Yrd Mat Mat Min Exi Min Mat Fac Fac Fac Fac Matter Collected 2863 | 190 210 454 96 . 127 686 414 . 596 90 Remotely . | . . . . . . . . . . . Salvage Created 3858 | . 308 739 98 . 314 1060 524 . 568 247 Parts 227 | . 11 65 12 . 18 55 26 . 28 12 Haulers Intercepted 1 | . . . . . . 1 . . . . Recyclers Shooed 1 | . . . . . . . 1 . . . Parts Field Recycled . | . . . . . . . . . . . Retrieved Matter . | . . . . . . . . . . . Parts Self-Destructed . | . . . . . . . . . . . Prevented . | . . . . . . . . . . . Kills | -11 -10 -9 -9 -9 -8 -8 -7 -6 -5 -4 ------- Run | Yrd Mat Mat Min Exi Min Mat Fac Fac Fac Fac Combat Hostiles Destroyed 95 | . 6 18 8 . 11 22 16 . 11 3 Melee 1 | . . . . . . . 1 . . . Guns 67 | . 6 18 8 . 8 17 5 . 4 1 Cannons 17 | . . . . . 3 5 4 . 3 2 AOE 8 | . . . . . . . 5 . 3 . Classes Destroyed 14 | . 2 4 . . 2 2 3 . 1 . Worker 6 | . . 1 . . . 3 1 . 1 . Builder 1 | . . . . . . . . . 1 . Tunneler 1 | . . . . . . . 1 . . . Hauler 1 | . . . . . . 1 . . . . Recycler 2 | . . . . . . . 2 . . . Operator 1 | . 1 . . . . . . . . . Watcher 6 | . . 4 . . . 2 . . . . Swarmer 34 | . . 6 8 . 6 4 10 . . . Grunt 34 | . 6 6 . . 2 11 3 . 3 3 Brawler 1 | . . . . . 1 . . . . . Duelist 1 | . . . . . . 1 . . . . Sentry 13 | . . 6 . . . 3 1 . 3 . Hunter 7 | . . . . . 2 3 . . 2 . Programmer 5 | . . . . . . . 2 . 3 . Best Kill Streak 6 | . 2 6 4 . 3 5 5 . 5 2 Combat Bots Only 5 | . 2 5 4 . 3 4 4 . 3 2 Max Kills in Single Turn 2 | . 1 1 2 . 1 2 2 . 1 1 Gunslinging 1 | . . . 1 . . . . . . . Exploded 2 | . . . . . . . 2 . 1 . Melee 1 | . . . . . . . 1 . . . Uniques/NPCs Destroyed . | . . . . . . . . . . . Combat | -11 -10 -9 -9 -9 -8 -8 -7 -6 -5 -4 -------- Run | Yrd Mat Mat Min Exi Min Mat Fac Fac Fac Fac Hostile Shots Fired 1115 | . 18 147 35 . 57 126 418 . 110 204 Missed 301 | . 4 36 10 . 12 25 133 . 23 58 Damage Taken 12744 | . 167 1370 207 . 566 1822 3104 . 2147 3361 Core 2773 | . . 188 43 . 149 534 310 . 391 1158 Absorbed by Shields 65 | . . 41 . . . . . . 24 . Redirected to Shielding 52 | . 20 32 . . . . . . . . Ignored by Resistances 120 | . . . . . . . 120 . . . Core Remaining (%) 60 | 100 100 . . . 5 2 55 100 60 . Volleys Fired 285 | . 18 63 10 . 29 79 37 . 35 14 Largest 7 | . 2 2 2 . 2 3 4 . 7 6 Hottest 495 | . 90 90 90 . 93 194 236 . 495 446 Shots Fired 676 | . 36 116 20 . 58 174 104 . 116 52 Gun 503 | . 36 116 20 . 44 131 67 . 63 26 Cannon 148 | . . . . . 14 43 25 . 40 26 Launcher 25 | . . . . . . . 12 . 13 . Special . | . . . . . . . . . . . Kinetic 221 | . . 89 10 . 29 45 19 . 14 15 Thermal 343 | . 18 25 10 . 29 111 69 . 58 23 Explosive 25 | . . . . . . . 12 . 13 . Electromagnetic 87 | . 18 2 . . . 18 4 . 31 14 Robot Hit Streak 18 | . 7 18 4 . 6 9 16 . 10 6 Robot Miss Streak 10 | . 1 3 10 . 3 5 8 . 7 4 Penetration Max 1 | . . . . . . . . . 1 1 Secondary Targets 6 | . . . 3 . . 3 . . . . Max Gunslinging Chain 1 | . . . 1 . . 1 . . . . Shots Hit Robots 411 | . 25 80 10 . 41 112 49 . 63 31 Core Hits 193 | . 12 33 8 . 17 52 23 . 33 15 Critical Kills 1 | . . . . . . . . . . 1 Critical Parts Destroyed . | . . . . . . . . . . . Critical Strikes 15 | . 1 4 . . . 3 3 . 3 1 Burn 12 | . 1 4 . . . 3 2 . 2 . Destroy 1 | . . . . . . . . . . 1 Blast 1 | . . . . . . . 1 . . . Corrupt 1 | . . . . . . . . . 1 . Melee Attacks . | . . . . . . . . . . . Impact . | . . . . . . . . . . . Slashing . | . . . . . . . . . . . Piercing . | . . . . . . . . . . . Sneak Attacks . | . . . . . . . . . . . Combat Hostiles . | . . . . . . . . . . . Follow-up Attacks . | . . . . . . . . . . . Damage Inflicted 9699 | . 328 1134 161 . 736 2195 1770 . 2404 971 Guns 5376 | . 328 1134 161 . 512 1582 616 . 684 359 Cannons 2410 | . . . . . 224 601 293 . 699 593 Explosions 1830 | . . . . . . . 809 . 1021 . Melee . | . . . . . . . . . . . Ramming 83 | . . . . . . 12 52 . . 19 Kinetic 2715 | . . 859 80 . 383 495 180 . 219 499 Thermal 4488 | . 161 263 81 . 353 1465 722 . 1162 281 Explosive 1606 | . . . . . . . 809 . 797 . Electromagnetic 807 | . 167 12 . . . 223 7 . 226 172 Impact . | . . . . . . . . . . . Slashing . | . . . . . . . . . . . Piercing . | . . . . . . . . . . . Highest Corruption 10 | . . . . . . . 10 . 8 8 Average Corruption 4 | . . . . . . . 6 . 1 5 Corruption Purged . | . . . . . . . . . . . Corruption Blocked . | . . . . . . . . . . . Effects 65 | . . . . . . . 54 . 10 1 Message Errors 15 | . . . . . . . 13 . 1 1 Matter Fused 17 | . . . . . . . 15 . 2 . Heat Flow Errors 6 | . . . . . . . 5 . 1 . Energy Discharges 11 | . . . . . . . 7 . 4 . Parts Rejected 1 | . . . . . . . 1 . . . Parts Fused 1 | . . . . . . . 1 . . . Data Loss (minor) 7 | . . . . . . . 6 . 1 . Data Loss (major) 2 | . . . . . . . 2 . . . Misfires 3 | . . . . . . . 3 . . . Alerts 1 | . . . . . . . . . 1 . Weapon Failures 1 | . . . . . . . 1 . . . Overload Shots . | . . . . . . . . . . . Overflow Damage 252 | . . . . . . 1 122 . 129 . Projectiles 32 | . . . . . . 1 1 . 30 . Explosions 220 | . . . . . . . 121 . 99 . Melee . | . . . . . . . . . . . Knockbacks 6 | . . . . . . . . . . 6 Impact 1 | . . . . . . . . . . 1 Kinetic 5 | . . . . . . . . . . 5 Secondary . | . . . . . . . . . . . Self-Inflicted Damage 690 | . . . . . . . 433 . 257 . Shots 13 | . . . . . . . 7 . 6 . Rammed 23 | . . . . . . 3 10 . . 10 Targets Rammed 24 | . . . . . . 3 11 . . 10 Kicked . | . . . . . . . . . . . Crushed 1 | . . . . . . . 1 . . . Highest Temperature 1456 | . 228 168 162 . 189 675 408 . 786 1456 Average Temperature 188 | . 65 38 67 . 78 240 114 . 253 548 Received Heat Transfer 2799 | . 93 512 . . 45 684 603 . 240 622 Effects 126 | . . . . . . 65 2 . 24 35 Shutdowns 27 | . . . . . . 11 1 . 4 11 Energy Bleed 16 | . . . . . . 6 . . 2 8 Interference 23 | . . . . . . 13 . . 5 5 Matter Decay 16 | . . . . . . 9 . . 3 4 Short Circuit 11 | . . . . . . 6 1 . 2 2 Damage (minor) 7 | . . . . . . 3 . . 2 2 Damage (major) 19 | . . . . . . 13 . . 5 1 Damage (core) 7 | . . . . . . 4 . . 1 2 Siege Activations . | . . . . . . . . . . . Robots Corrupted 1 | . . . . . . . . . 1 . Combat Hostiles 1 | . . . . . . . . . 1 . Parts Fried 4 | . . . . . . 3 . . 1 . Impact Corruptions . | . . . . . . . . . . . Robots Melted 1 | . . . . . . . 1 . . . Combat Hostiles 1 | . . . . . . . 1 . . . Parts Melted 10 | . . 1 . . . 3 3 . 3 . Heat Transferred 9377 | . 555 999 185 . 703 3145 1591 . 1740 459 Parts Sabotaged . | . . . . . . . . . . . Parts Stolen . | . . . . . . . . . . . Parts Stripped . | . . . . . . . . . . . Power Chain Reactions . | . . . . . . . . . . . Alert | -11 -10 -9 -9 -9 -8 -8 -7 -6 -5 -4 ------- Run | Yrd Mat Mat Min Exi Min Mat Fac Fac Fac Fac Peak Influence 333 | . 130 258 115 . 150 211 300 . 333 155 Initial 135 | . . 54 10 . . . 93 . . 135 Average 70 | . 38 108 58 . 52 54 86 . 86 73 Maximum Alert Level 1 | . . 1 . . . 1 1 . 1 . Low Security (%) 94 | 100 100 97 100 . 100 92 90 100 85 100 Level 1 5 | . . 2 . . . 7 9 . 14 . Level 2 . | . . . . . . . . . . . Level 3 . | . . . . . . . . . . . Level 4 . | . . . . . . . . . . . Level 5 . | . . . . . . . . . . . High Security . | . . . . . . . . . . . Max Security . | . . . . . . . . . . . Squads Dispatched 16 | . 2 1 . . . 3 3 . 6 1 Investigation 2 | . . . . . . 1 . . 1 . Extermination 6 | . . . . . . . 2 . 3 1 Reinforcement 8 | . 2 1 . . . 2 1 . 2 . Assault . | . . . . . . . . . . . Garrison . | . . . . . . . . . . . Intercept . | . . . . . . . . . . . Searches Triggered . | . . . . . . . . . . . Construction Impeded 2 | . . . . . . . 1 . 1 . Haulers Reinforced . | . . . . . . . . . . . Active Scanning Responses . | . . . . . . . . . . . Cargo Convoy Interrupts . | . . . . . . . . . . . Stealth | -11 -10 -9 -9 -9 -8 -8 -7 -6 -5 -4 --------- Run | Yrd Mat Mat Min Exi Min Mat Fac Fac Fac Fac Distress Signals 2 | . . 1 . . . 1 . . . . Communications Jammed . | . . . . . . . . . . . Distress Signals . | . . . . . . . . . . . Times Spotted 138 | . 12 25 10 . 9 31 23 . 18 10 Peak Tracking Total 5 | . 3 5 4 . 3 4 4 . 4 5 Tactical Retreats 9 | . 1 2 2 . . 1 1 . . 2 Traps | -11 -10 -9 -9 -9 -8 -8 -7 -6 -5 -4 ------- Run | Yrd Mat Mat Min Exi Min Mat Fac Fac Fac Fac Traps Triggered 3 | . . . . . . 1 2 . . . Indirectly . | . . . . . . . . . . . Trap Hack Attempts . | . . . . . . . . . . . Triggered . | . . . . . . . . . . . Disarmed . | . . . . . . . . . . . Reprogrammed . | . . . . . . . . . . . Reused . | . . . . . . . . . . . Traps Extracted . | . . . . . . . . . . . Installed . | . . . . . . . . . . . Triggered . | . . . . . . . . . . . Machines | -11 -10 -9 -9 -9 -8 -8 -7 -6 -5 -4 ---------- Run | Yrd Mat Mat Min Exi Min Mat Fac Fac Fac Fac Machines Disabled 15 | . . . . . 1 1 5 . 7 1 Max in Single Turn 4 | . . . . . 1 1 4 . 3 1 Garrison Access 2 | . . . . . . . 2 . . . Machines Repaired . | . . . . . . . . . . . Machines Dismantled . | . . . . . . . . . . . Machines Sabotaged . | . . . . . . . . . . . Overloaded Fab Kills . | . . . . . . . . . . . Hacking | -11 -10 -9 -9 -9 -8 -8 -7 -6 -5 -4 --------- Run | Yrd Mat Mat Min Exi Min Mat Fac Fac Fac Fac Machines Accessed 10 | . . . 1 2 . 3 2 . 1 1 Terminals 3 | . . . . . . 2 . . . 1 Fabricators 1 | . . . . . . . . . 1 . Repair Stations . | . . . . . . . . . . . Recycling Units . | . . . . . . . . . . . Scanalyzers 1 | . . . . . . 1 . . . . Garrison Access 2 | . . . . . . . 2 . . . Total Hacks 25 | . . . 1 11 . 6 3 . 2 2 Successful 20 | . . . 1 11 . 5 2 . . 1 Failed 5 | . . . . . . 1 1 . 2 1 Catastrophic 4 | . . . . . . 1 1 . 1 1 Database Lockouts . | . . . . . . . . . . . Manual 2 | . . . . 2 . . . . . . Terminals 6 | . . . . . . 4 . . . 2 Fabricators 2 | . . . . . . . . . 2 . Repair Stations . | . . . . . . . . . . . Recycling Units . | . . . . . . . . . . . Scanalyzers 2 | . . . . . . 2 . . . . Garrison Access 3 | . . . . . . . 3 . . . Terminal Hacks 16 | . . . 1 11 . 3 . . . 1 Record 15 | . . . . 11 . 3 . . . 1 Open Door 1 | . . . 1 . . . . . . . Fabricator Hacks . | . . . . . . . . . . . Repair Station Hacks . | . . . . . . . . . . . Recycling Unit Hacks . | . . . . . . . . . . . Scanalyzer 2 | . . . . . . 2 . . . . Insert Component 2 | . . . . . . 2 . . . . Garrison Access Hacks 2 | . . . . . . . 2 . . . Seal Access 2 | . . . . . . . 2 . . . Unauthorized Hacks . | . . . . . . . . . . . Terminals . | . . . . . . . . . . . Fabricators . | . . . . . . . . . . . Repair Stations . | . . . . . . . . . . . Recycling Units . | . . . . . . . . . . . Scanalyzers . | . . . . . . . . . . . Garrison Access . | . . . . . . . . . . . Data Cores Recovered . | . . . . . . . . . . . Used . | . . . . . . . . . . . Hacking Detections 4 | . . . . . . 1 1 . 1 1 Full Trace Events 1 | . . . . . . . . . 1 . Feedback Events 1 | . . . . . . . . . 1 . Corruption 1 | . . . . . . . . . 1 . Feedback Blocked . | . . . . . . . . . . . Robot Schematics Acquired . | . . . . . . . . . . . Robots Built . | . . . . . . . . . . . Authchips . | . . . . . . . . . . . Time . | . . . . . . . . . . . Total Robot Build Rating . | . . . . . . . . . . . Part Schematics Acquired . | . . . . . . . . . . . Parts Built . | . . . . . . . . . . . Authchips . | . . . . . . . . . . . Time . | . . . . . . . . . . . Total Part Build Rating . | . . . . . . . . . . . Parts Repaired . | . . . . . . . . . . . Time . | . . . . . . . . . . . Parts Recycled . | . . . . . . . . . . . Recycled Matter . | . . . . . . . . . . . Retrieved Matter . | . . . . . . . . . . . Retrieved Components . | . . . . . . . . . . . Parts Scanalyzed . | . . . . . . . . . . . Part Schematics Acquired . | . . . . . . . . . . . Parts Damaged . | . . . . . . . . . . . Bothacking | -11 -10 -9 -9 -9 -8 -8 -7 -6 -5 -4 ------------ Run | Yrd Mat Mat Min Exi Min Mat Fac Fac Fac Fac Used RIF Installer . | . . . . . . . . . . . Robots Hacked . | . . . . . . . . . . . Non-combat . | . . . . . . . . . . . Combat . | . . . . . . . . . . . Robot Hacks Applied . | . . . . . . . . . . . Relay Couplers Released . | . . . . . . . . . . . Fabnet Peak Effective % . | . . . . . . . . . . . Robots Rewired . | . . . . . . . . . . . Allies Hacked . | . . . . . . . . . . . Hacks Repelled . | . . . . . . . . . . . Allies | -11 -10 -9 -9 -9 -8 -8 -7 -6 -5 -4 -------- Run | Yrd Mat Mat Min Exi Min Mat Fac Fac Fac Fac Total Allies 1 | . . . 1 . . . . . . . Largest Group 1 | . . . 1 . . . . . . . Highest-Rated Group 31 | . . . 31 . . . . . . . Highest-Rated Ally 31 | . . . 31 . . . . . . . Total Orders . | . . . . . . . . . . . Ally Attacks 46 | . . . . . . . 8 . 38 . Total Damage 252 | . . . . . . . 37 . 215 . Kills 1 | . . . . . . . . . 1 . Allies Corrupted 1 | . . . . . . . . . 1 . Allies Melted . | . . . . . . . . . . . Intel | -11 -10 -9 -9 -9 -8 -8 -7 -6 -5 -4 ------- Run | Yrd Mat Mat Min Exi Min Mat Fac Fac Fac Fac Robot Analysis Total . | . . . . . . . . . . . Derelict Logs Recovered 1 | . . . 1 . . . . . . . Drone Launches 12 | . . . . . . . 3 . 9 . Drone Recoveries 10 | . . . . . . . 3 . 7 . Exploration | -11 -10 -9 -9 -9 -8 -8 -7 -6 -5 -4 ------------- Run | Yrd Mat Mat Min Exi Min Mat Fac Fac Fac Fac Turns Passed 14950 | 406 746 1755 1208 1378 1254 2700 3056 223 1874 350 Spaces Moved 4932 | 91 244 436 485 575 481 924 782 89 677 148 Core 93 | 8 . . . . . . 40 . . 45 Treads 3239 | 2 109 81 485 575 481 924 564 . . 18 Legs 595 | 81 135 355 . . . . . . . 24 Wheels 982 | . . . . . . . 155 89 677 61 Hover 23 | . . . . . . . 23 . . . Flight . | . . . . . . . . . . . Fastest Speed 50 | 50 120 240 240 240 240 240 230 245 125 50 Average Speed 252 | 169 217 325 240 240 240 245 362 245 158 154 Slowest Speed 2200 | 190 400 750 240 240 240 320 2000 245 275 2200 Overloaded Moves . | . . . . . . . . . . . Propulsion Burnouts . | . . . . . . . . . . . Robots Hopped . | . . . . . . . . . . . Cave-ins Triggered . | . . . . . . . . . . . Exploration Rate (%) 40 | 6 38 47 79 93 82 48 25 2 16 4 Regions Visited 10 Branch Regions 3 Pre-discovered Areas 1 | . . . . 1 . . . . . . Known Exits Taken 9 | . 1 1 1 1 1 1 1 1 1 . Unknown Exits Taken 1 | 1 . . . . . . . . . . Scrap Searched 4 | . . . 3 . 1 . . . . . Spaces Dug . | . . . . . . . . . . . Terrain Destroyed 253 | . . . . . . 1 112 . 137 3 Melee . | . . . . . . . . . . . Projectile 11 | . . . . . . 1 2 . 5 3 AOE 242 | . . . . . . . 110 . 132 . Terrain Rammed . | . . . . . . . . . . . Walls Destroyed . | . . . . . . . . . . . Machines Disabled . | . . . . . . . . . . . Actions | -11 -10 -9 -9 -9 -8 -8 -7 -6 -5 -4 --------- Run | Yrd Mat Mat Min Exi Min Mat Fac Fac Fac Fac Total 6867 | 339 423 658 511 574 524 1212 907 94 1405 220 Wait 1272 | 226 145 82 5 . 11 126 19 . 632 26 Move 4922 | 90 243 435 484 574 480 923 781 88 676 148 Hop . | . . . . . . . . . . . Pick Up 132 | 10 7 39 4 . 2 22 22 1 22 3 Fast Attach 8 | . 1 . 1 . . 2 . . 2 2 Attach 100 | 6 2 15 1 . 2 17 25 2 15 15 Detach 3 | . 2 . . . . . 1 . . . Swap 63 | 7 5 11 1 . . 16 4 2 16 1 Drop 54 | . . 11 5 . . 24 5 1 7 1 Fire 285 | . 18 63 10 . 29 79 37 . 35 14 Melee . | . . . . . . . . . . . Ram . | . . . . . . . . . . . Kick . | . . . . . . . . . . . Crush 24 | . . . . . . 3 11 . . 10 Escape Stasis 2 | . . . . . . . 2 . . . Rewire 2 | . . 2 . . . . . . . . Trap . | . . . . . . . . . . . Miscellaneous . | . . . . . . . . . . . Route ------- -11/Scrapyard -10/Materials -9/Materials -9/Mines (discovered 3 exits: *Mat x2 / *Exi) -9/Exiles (discovered 2 exits: *Min x2) -8/Mines (discovered 2 exits: *Mat x2) -8/Materials (discovered 2 exits: *Fac x2) -7/Factory -6/Factory -5/Factory -4/Factory History --------- Turn | Location | Event 2 | -11/Scrapyard | Met Revision 17 14 | -11/Scrapyard | Discovered new exit (range 16) 407 | -11/Scrapyard | Entered Materials 422 | -10/Materials | Build established: Mutant 1030 | -10/Materials | Discovered new exit (range 14) 1149 | -10/Materials | Identified exit to Materials 1153 | -10/Materials | Entered another Materials area 1153 | -9/Materials | Evolved 2 slots: Propulsion x1, Utility x1 1440 | -9/Materials | Lost 3 parts (1p2u) 1743 | -9/Materials | Build established: Scavenger-Mutant 1781 | -9/Materials | Lost 3 parts (1n2w) 2169 | -9/Materials | Lost 4 parts (1p2n1w) 2809 | -9/Materials | Discovered new exit (range 14) 2906 | -9/Materials | Identified exit to Mines 2908 | -9/Materials | Entered Mines 3072 | -9/Mines | Found the Drone Emporium 3095 | -9/Mines | Found Prototype Device 3099 | -9/Mines | Identified Thief Drone Bay 3153 | -9/Mines | Learned 4 Materials zone layouts 3189 | -9/Mines | Discovered new exit (range 3) 3193 | -9/Mines | Identified exit to Materials 3299 | -9/Mines | Found a damaged Exp. Sensor Array with a note attached 3304 | -9/Mines | Found Prototype Device 3305 | -9/Mines | Identified Exp. Sensor Array 3402 | -9/Mines | Build established: Mutant 3521 | -9/Mines | Core integrity fell below 50% 3776 | -9/Mines | Discovered exit to Materials (range 6) 3779 | -9/Mines | Received a Mining Laser from a helpful Derelict 4099 | -9/Mines | Deemed a non-threat by the Exiles lab entrance 4101 | -9/Mines | Discovered new exit (range 5) 4111 | -9/Mines | Identified exit to Exiles 4116 | -9/Mines | Entered Exiles 4152 | -9/Exiles | Discovered new exit (range 15) 4184 | -9/Exiles | Identified exit to Mines 4234 | -9/Exiles | Met 8R-AWN 4272 | -9/Exiles | Met EX-HEX 4388 | -9/Exiles | Met EX-BIN 4628 | -9/Exiles | Met EX-DEC 4642 | -9/Exiles | Learned location of Zion (-6) 4750 | -9/Exiles | Discovered exit to Mines (range 12) 4950 | -9/Exiles | Visited The Gauntlet 5494 | -9/Exiles | Entered Mines 5727 | -8/Mines | Discovered exit to Materials (range 10) 6277 | -8/Mines | Core integrity fell below 20% 6416 | -8/Mines | Discovered exit to Materials (range 10) 6748 | -8/Mines | Entered Materials 6748 | -8/Materials | Evolved 2 slots: Utility x1, Weapon x1 6749 | -8/Materials | Identified exit to Factory 7046 | -8/Materials | Build established: Scavenger-Skirmisher 8352 | -8/Materials | Discovered exit to Factory (range 7) 8360 | -8/Materials | Lost 5 parts (1p1n2u1w) 8624 | -8/Materials | Build established: Scavenger-Tank 9135 | -8/Materials | Core integrity fell below 50% 9205 | -8/Materials | Core integrity fell below 20% 9448 | -8/Materials | Entered Factory 9448 | -7/Factory | Evolved 2 slots: Utility x1, Weapon x1 10251 | -7/Factory | Build established: Tank 10794 | -7/Factory | Lost 9 parts (1p2n3u3w) 11592 | -7/Factory | System corruption reached 10% 11608 | -7/Factory | Lost 6 parts (1p3u2w) 12014 | -7/Factory | Build established: Skirmisher 12196 | -7/Factory | Discovered new exit (range 4) 12201 | -7/Factory | Identified exit to Factory 12504 | -7/Factory | Entered another Factory area 12504 | -6/Factory | Evolved 2 slots: Utility x1, Weapon x1 12685 | -6/Factory | Discovered new exit (range 15) 12719 | -6/Factory | Identified exit to Factory 12727 | -6/Factory | Entered another Factory area 12727 | -5/Factory | Evolved 2 slots: Weapon x2 13015 | -5/Factory | Build established: Executioner 13660 | -5/Factory | Lost 3 parts (2u1w) 14218 | -5/Factory | Build established: Scavenger-Executioner 14416 | -5/Factory | Lost 3 parts (1n1u1w) 14487 | -5/Factory | Discovered new exit (range 10) 14505 | -5/Factory | Identified exit to Factory 14601 | -5/Factory | Entered another Factory area 14601 | -4/Factory | Evolved 2 slots: Power x1, Utility x1 14613 | -4/Factory | Lost 8 parts (2n2u4w) 14758 | -4/Factory | Core integrity fell below 50% 14780 | -4/Factory | Core integrity fell below 20% 14803 | -4/Factory | Lost 18 parts (3p3n2u10w) 14951 | -4/Factory | Destroyed by G-67 Veteran with Field Laser Last Messages --------------- 14913_ Subcomponent Replicator disabled. 14915_ M-13 Machinist repairs G-67 Veteran. 14917_ G-67 Veteran knocked back. 14919_ ALERT: Security rotation in progress. 14919_ P-70 Sage resets G-67 Veteran, system corruption cleaned. 14922_ M-13 Machinist repairs Flexi-carbon Leg. 14922_ Slug penetrates Wall. 14924_ Hpw. Shock Rifle destroyed. 14925_ P-70 Sage knocked back. 14928_ Slammed into G-67 Veteran. 14939_ Acquired 8 matter. 14940_ Slammed into G-67 Veteran. 14940_ G-67 Veteran knocked back. 14941_ M-28 Smith repairs Tesla Rifle. 14942_ RP9WTAG1GHS VZYZVXT>%CMLRJ2YEMNIZ MDR 14943_ Slammed into G-67 Veteran. 14943_ M-28 Smith repairs Hpw. Shock Rifle. 14945_ Slammed into G-67 Veteran. 14951_ Imp. Treads destroyed. Map ----- +----------------------------------------------------+ | | | | | | | | | | | | | | | | | ?????????????????????????????????????????????????? | | ?????????????????????????????????????????????????? | | ?????????????????????????????????????????????????? | | ?????????????????????????????????????????????????? | | ?????????????????????????????????????????????????? | | ?????????????????????????????????????????????????? | | ?????????????????????????????????????????????????? | | ???????????????????????????????#?????????????????? | | ??????????????????????????????? ?????????????????? | | ??????????????????????????????#"############?????? | | ??????????????????????????????# #?????? | | ??????????????????????????????# ]] #?????? | | ??????????????????????????????# ]! #?????? | | ?????????????????#########+#### #?????? | | #############????# % %# #?????? | | #????# #= #?????? | | "" = #????# %p;* #?????? | | "T #????# @ m#= """ #?????? | | "" #????# g # """"" #?????? | | """ #????# ###### # """" #?????? | | """ #????# #????# # #?????? | | """ #????# #????# # % #?????? | | #????# #????# ########+#####?????? | | """ """ #????# #????# #??????????????????? | | """ """ #????# #????# #??????????????????? | | """ """ #????# #????# #??????????????????? | | #????# #????# #??????????????????? | | ######+########### #????# #??????????????????? | | ?# #????# #??????????????????? | | ?# #????# #??????????????????? | | ?# ][* ######+##?????????????????? | | ?# ==[ # #?????????????????? | | ?# =[!=[ # " #?????????????????? | | ?###########/##### # " #?????????????????? | | ?# [%*#??# # " #?????????????????? | | ?# """""[ #??# # " #?????????????????? | | ?# """"" #??? / " #?????????????????? | | ?# """ #??? # " #?????????????????? | | ?# #??? # "S " #?????????????????? | | ?# """"" #??? # """ " #?????????????????? | | ?# """"" #??? # "" " #?????????????????? | | ?# """ #??# # #?????????????????? | +----------------------------------------------------+ Best States ------------- Heat Dissipation 54 Energy Generation 28 Energy Capacity 455 Matter Stores 300 Matter Capacity 300 Sight Range 16 Robot Scan Range 20 Terrain Scan Density 10 ECM Strength 2 Jamming Range 12 Armor Coverage 600 Resistance: EM 15 Propulsion Shielding 33 Evasion (%) 55 Recoil Reduction 3 Item Schematics ----------------- None Robot Schematics ------------------ None Fabricated ------------ Nothing Alien Tech Used ----------------- None Achievements -------------- Executioner I Spy Librarian Power Corrupts Remodeling Serviceable Loadout System Compromised Tank Challenges ------------ None Game ------ Seed AntimissileFlightMount Manual? 0 Play Time 02:20:43 Cumulative 8.1 hours Start 2024.04.03 @ 23:24:06 End 2024.04.04 @ 02:34:09 Sessions 1 Manual Loads 0 Difficulty Rogue Special Mode None Game No. 10 Rogue 10 Adventurer 0 Explorer 0 Win Type - Total 0 Types 0/0/0/0/0/0/0/0/0 Lore% 7 Gallery% 13 Achievement% 12 Wizard Run 0 Options --------- Layout 1 ASCII 0 Keyboard 0 Movement Mouse Keybinds 0 Fullscreen 2 Font 24/Smallcaps Map View 50x35 Zoom Use 0% Tactical HUD 1 Map Filters NONE Filters NONE Steam 1 RUN: 4e705550-df2c-41d4-9499-7579da87a19e